bitfinex/quotes_SOLUSD_20250514
["timestamp","ask_amount","ask_price","bid_price","bid_amount"]
[1747183537559,26.0,182.35,182.31,6.67000817]
[1747183537759,5.48426017,182.34,182.32,6.67045361]
[1747183538156,5.48426017,182.34,182.33,6.67045361]
[1747183538375,5.48365869,182.36,182.33,6.67045361]
[1747183538554,5.48365869,182.36,182.35,6.67045361]
[1747183539591,5.48275673,182.39,182.35,6.67045361]
[1747183539762,5.48275673,182.39,182.38,6.67045361]
[1747183540752,5.48275673,182.39,182.38,6.66438089]
[1747183541647,6.78252359,182.4,182.38,6.66438089]
[1747183541851,5.48252359,182.4,182.39,6.66438089]
[1747183542063,19.17703138,182.51,182.39,6.66438089]
[1747183542261,19.17703138,182.51,182.46,6.66438089]
[1747183542262,38.17703138,182.51,182.46,6.66438089]
[1747183542479,64.17703138,182.51,182.46,6.66438089]
[1747183542663,70.84141227,182.51,182.46,6.66438089]
[1747183542867,75.30133029,182.51,182.46,6.66438089]
[1747183543180,44.84141227,182.51,182.46,6.66438089]
[1747183543378,64.17703138,182.51,182.47,6.66438089]
[1747183543775,38.17703138,182.51,182.47,6.66438089]
[1747183544087,64.17703138,182.51,182.47,6.66438089]
[1747183544783,66.94432781,182.51,182.47,6.66438089]
[1747183546285,66.94432781,182.51,182.48,6.66438089]
[1747183546580,8.24644825,182.51,182.5,6.66438089]
[1747183547675,8.24644825,182.51,182.49,6.66438089]
[1747183549595,6.66438089,182.5,182.38,1.5215]
[1747183549763,7.96438089,182.49,182.44,6.66438089]
[1747183550077,21.94432781,182.51,182.45,6.66438089]
[1747183550078,1.3,182.48,182.45,6.66438089]
[1747183550283,5.48035293,182.47,182.45,6.66438089]
[1747183550672,5.48035293,182.47,182.44,6.66438089]
[1747183550876,19.18123526,182.47,182.44,6.66438089]
[1747183551391,26.0,182.44,182.33,1.5033]
[1747183551686,6.66438089,182.38,182.33,6.66438089]
[1747183552292,18.98,182.39,182.31,25.64438089]
[1747183552293,6.66438089,182.36,182.31,25.64438089]
[1747183552794,12.15405036,182.37,182.32,6.67069236]
[1747183553486,6.67069236,182.36,182.31,6.67069236]
[1747183554373,25.86244538,182.37,182.29,1.5033]
[1747183554574,25.86244538,182.37,182.32,6.67069236]
[1747183554788,25.86244538,182.37,182.29,1.5033]
[1747183554789,5.483358,182.37,182.35,6.67069236]
[1747183555386,5.483358,182.37,182.34,6.67069236]
[1747183556080,5.483358,182.37,182.29,1.5033]
[1747183556081,5.483358,182.37,182.35,6.67069236]
[1747183556472,5.483358,182.37,182.36,6.67069236]
[1747183556868,5.483358,182.37,182.35,6.67069236]
[1747183557272,5.483358,182.37,182.29,1.5033]
[1747183557467,5.483358,182.37,182.32,6.67069236]
[1747183557468,6.67069236,182.37,182.32,6.67069236]
[1747183557689,13.70839502,182.37,182.35,6.67069236]
[1747183557998,5.48305735,182.38,182.36,6.67069236]
[1747183559079,5.48305735,182.38,182.37,6.67069236]
[1747183559801,6.78282781,182.39,182.37,6.67069236]
[1747183559990,6.78282781,182.39,182.38,6.67069236]
[1747183560487,5.48185505,182.42,182.38,6.67069236]
[1747183560670,5.48095368,182.45,182.41,6.67069236]
[1747183560876,5.48095368,182.45,182.38,1.5548]
[1747183561077,5.48095368,182.45,182.43,6.67069236]
[1747183562140,5.48095368,182.45,182.44,6.67069236]
[1747183563380,13.69933576,182.5,182.44,10.65468446]
[1747183563584,19.17878781,182.5,182.49,10.65468446]
[1747183563891,19.17878781,182.5,182.41,0.14216157]
[1747183564390,19.17878781,182.5,182.46,10.65468446]
[1747183564589,19.17878781,182.5,182.47,10.65468446]
[1747183565013,19.17878781,182.5,182.48,10.65468446]
[1747183565204,19.17878781,182.5,182.43,10.65468446]
[1747183565205,19.17878781,182.5,182.47,10.65468446]
[1747183565385,29.83347227,182.5,182.4,18.98]
[1747183565579,11.95468446,182.49,182.44,10.65468446]
[1747183565797,1.3,182.48,182.44,10.65468446]
[1747183566194,11.95468446,182.48,182.42,10.65468446]
[1747183566397,10.65468446,182.45,182.4,18.98]
[1747183566589,1.3,182.44,182.42,10.65468446]
[1747183567001,5.48155456,182.43,182.42,10.65468446]
[1747183567285,5.48155456,182.43,182.41,10.65468446]
[1747183567498,5.48155456,182.43,182.42,10.65468446]
[1747183567902,5.48155456,182.43,182.41,10.65468446]
[1747183568706,6.78155456,182.43,182.4,10.65468446]
[1747183569015,6.78155456,182.43,182.37,10.65468446]
[1747183569016,10.65468446,182.42,182.37,10.65468446]
[1747183569216,25.65857088,182.43,182.37,10.65468446]
[1747183569711,10.65468446,182.42,182.35,18.98]
[1747183570015,1.3,182.41,182.37,10.65468446]
[1747183570397,10.65468446,182.38,182.33,10.65468446]
[1747183570610,10.65468446,182.37,182.32,10.65468446]
[1747183571131,19.19280543,182.36,182.32,10.65468446]
[1747183571623,19.19280543,182.36,182.33,10.65468446]
[1747183571913,5.48365869,182.36,182.35,10.65468446]
[1747183572412,5.48305735,182.38,182.35,10.65468446]
[1747183572611,5.48305735,182.38,182.37,10.65468446]
[1747183572795,5.48283215,182.39,182.37,10.65468446]
[1747183572996,5.48283215,182.39,182.38,10.65468446]
[1747183573183,5.48252523,182.4,182.38,10.65468446]
[1747183573384,5.48252523,182.4,182.39,10.65468446]
[1747183575114,5.48155456,182.43,182.39,10.65468446]
[1747183575503,19.18544098,182.43,182.39,10.65468446]
[1747183575898,19.18544098,182.43,182.4,10.65468446]
[1747183576213,19.18544098,182.43,182.39,10.65468446]
[1747183578191,19.18544098,182.43,182.41,10.65468446]
[1747183578592,19.18544098,182.43,182.42,10.65468446]
[1747183579615,20.48544098,182.43,182.42,10.65468446]
[1747183580604,20.48544098,182.43,182.4,10.65468446]
[1747183580911,20.48544098,182.43,182.39,10.65468446]
[1747183581116,20.48544098,182.43,182.4,10.65468446]
[1747183581621,1.3,182.42,182.35,18.94]
[1747183581922,10.65468446,182.38,182.3,18.94]
[1747183582139,10.65468446,182.37,182.3,18.94]
[1747183582304,10.65468446,182.38,182.32,10.65468446]
[1747183582501,20.26,182.39,182.3,18.94]
[1747183582502,20.26,182.39,182.34,10.65468446]
[1747183582827,20.26,182.39,182.33,10.65468446]
[1747183582828,10.65468446,182.38,182.33,10.65468446]
[1747183583631,19.19175302,182.37,182.33,10.65468446]
[1747183584823,5.483358,182.37,182.34,10.65468446]
[1747183585015,5.483358,182.37,182.36,10.65468446]
[1747183585204,5.483358,182.37,182.3,18.94]
[1747183585711,19.19175302,182.37,182.34,10.65468446]
[1747183585897,5.483358,182.37,182.35,10.65468446]
[1747183586220,5.483358,182.37,182.3,18.94]
[1747183586430,5.483358,182.37,182.34,10.65468446]
[1747183586921,21.95341702,182.38,182.34,10.65468446]
[1747183587723,10.65468446,182.37,182.3,18.94]
[1747183587910,1.3,182.36,182.31,10.65468446]
[1747183588112,11.95468446,182.36,182.31,10.65468446]
[1747183588530,1.3,182.36,182.33,10.65468446]
[1747183588922,5.48395941,182.35,182.34,10.65468446]
[1747183590037,5.47975231,182.49,182.37,26.0]
[1747183590238,5.47975231,182.49,182.48,10.65468446]
[1747183590549,5.47975231,182.49,182.47,10.65468446]
[1747183590712,5.47975231,182.49,182.39,1.52260942]
[1747183591032,5.47975231,182.49,182.46,10.65468446]
[1747183591237,5.47975231,182.49,182.47,10.65468446]
[1747183591415,19.17913309,182.49,182.39,0.14216157]
[1747183591615,19.17913309,182.49,182.47,10.65468446]
[1747183591832,5.47975231,182.49,182.48,10.65468446]
[1747183592940,5.47825134,182.54,182.48,10.65468446]
[1747183593106,5.47825134,182.54,182.5,10.65468446]
[1747183594241,13.69562835,182.54,182.51,10.65468446]
[1747183594739,16.39523627,182.54,182.5,10.65468446]
[1747183595039,27.04992073,182.54,182.43,10.65468446]
[1747183595217,10.65468446,182.5,182.45,10.65468446]
[1747183595732,11.95468446,182.49,182.44,10.65468446]
[1747183595938,1.3,182.48,182.44,10.65468446]
[1747183596139,5.48035293,182.47,182.44,10.65468446]
[1747183596348,5.48035293,182.47,182.38,47.4221]
[1747183596551,1.3,182.46,182.38,21.4221]
[1747183596736,1.3,182.46,182.43,10.65468446]
[1747183596921,1.3,182.45,182.43,10.65468446]
[1747183598246,1.3,182.45,182.44,10.65468446]
[1747183598426,6.78095368,182.45,182.44,10.65468446]
[1747183599034,1.3,182.45,182.44,10.65468446]
[1747183600323,14.99891684,182.5,182.44,10.65468446]
[1747183600523,5.47975231,182.49,182.43,10.65468446]
[1747183600724,5.47975231,182.49,182.48,10.65468446]
[1747183607554,6.77950269,182.5,182.48,10.65468446]
[1747183607754,6.77950269,182.5,182.49,10.65468446]
[1747183607939,6.77950269,182.5,182.45,19.8]
[1747183608144,6.77950269,182.5,182.49,10.65468446]
[1747183609469,6.77950269,182.5,182.45,19.8]
[1747183609670,6.77950269,182.5,182.49,10.65468446]
[1747183610157,20.47813282,182.5,182.48,10.65468446]
[1747183610862,20.47813282,182.5,182.49,10.65468446]
[1747183611075,20.47813282,182.5,182.45,19.8]
[1747183611277,20.47813282,182.5,182.48,10.65468446]
[1747183611686,20.47813282,182.5,182.45,19.8]
[1747183611873,20.47813282,182.5,182.48,10.65468446]
[1747183613765,10.65468446,182.49,182.42,26.0]
[1747183613965,31.13486858,182.48,182.43,10.65468446]
[1747183614167,1.3,182.47,182.43,10.65468446]
[1747183614361,1.3,182.47,182.45,10.65468446]
[1747183614751,1.3,182.47,182.44,10.65468446]
[1747183615053,1.3,182.47,182.4,25.8309]
[1747183615263,1.3,182.47,182.44,10.65468446]
[1747183615466,1.3,182.47,182.45,10.65468446]
[1747183615783,1.3,182.47,182.44,10.65468446]
[1747183616149,5.48065329,182.46,182.44,10.65468446]
[1747183616579,5.48065329,182.46,182.45,10.65468446]
[1747183617279,5.48065329,182.46,182.44,10.65468446]
[1747183619095,5.48065329,182.46,182.45,10.65468446]
[1747183619391,5.48065329,182.46,182.45,6.6601481]
[1747183621194,5.48065329,182.46,182.36,6.4451]
[1747183621195,25.84243462,182.46,182.36,6.4451]
[1747183621486,6.6601481,182.44,182.39,6.6601481]
[1747183621660,1.3,182.45,182.4,6.6601481]
[1747183621866,1.3,182.44,182.41,6.6601481]
[1747183622365,1.3,182.44,182.42,6.6601481]
[1747183623393,87.21351002,182.43,182.32,20.06]
[1747183623691,6.6601481,182.35,182.29,8.48100751]
[1747183623869,6.6601481,182.35,182.3,6.6601481]
[1747183624072,7.9601481,182.34,182.29,8.48100751]
[1747183624283,6.6601481,182.33,182.29,8.48100751]
[1747183624485,1.3,182.34,182.29,15.14115561]
[1747183624689,6.6601481,182.31,182.29,8.48100751]
[1747183624891,7.9601481,182.3,182.2,30.07830751]
[1747183625063,6.6601481,182.28,182.23,6.6601481]
[1747183625261,19.20122887,182.28,182.23,10.68217481]
[1747183625677,19.20122887,182.28,182.2,30.07830751]
[1747183625678,19.20122887,182.28,182.24,10.68217481]
[1747183626597,10.68217481,182.27,182.22,10.68217481]
[1747183626805,10.68217481,182.25,182.2,8.48100751]
[1747183626969,10.68217481,182.23,182.2,8.48100751]
[1747183627278,5.48817298,182.21,182.2,8.48100751]
[1747183627473,5.48817298,182.21,182.17,10.68217481]
[1747183627990,5.48817298,182.21,182.16,5.9760611]
[1747183627991,1.3,182.2,182.16,10.68217481]
[1747183628382,10.68217481,182.19,182.14,10.68217481]
[1747183628696,10.68217481,182.17,182.11,8.48100751]
[1747183628993,10.68217481,182.12,182.11,8.48100751]
[1747183629291,5.49088513,182.12,182.11,8.48100751]
[1747183629879,5.49088513,182.12,182.11,19.16318232]
[1747183630281,5.49088513,182.12,182.11,10.68217481]
[1747183630496,5.49088513,182.12,182.1,10.68217481]
[1747183631194,5.49088513,182.12,182.04,46.08]
[1747183631493,5.49058364,182.13,182.09,10.68217481]
[1747183631672,5.49058364,182.13,182.11,10.68217481]
[1747183632089,5.49058364,182.13,182.1,10.68217481]
[1747183632998,13.72539023,182.15,182.1,10.68217481]
[1747183633199,10.68217481,182.11,182.0,8.48100751]
[1747183633384,10.68217481,182.08,182.03,10.68217481]
[1747183633577,10.68217481,182.07,182.02,10.68217481]
[1747183634389,0.28432314,182.09,182.02,10.68217481]
[1747183634590,10.68217481,182.08,182.03,10.68217481]
[1747183634794,5.49239303,182.07,182.03,10.68217481]
[1747183635198,16.17456784,182.07,181.96,31.49570114]
[1747183635496,16.17456784,182.07,182.02,10.68217481]
[1747183635900,16.17456784,182.07,181.98,10.68217481]
[1747183636091,16.17456784,182.07,182.02,10.68217481]
[1747183636287,10.68217481,182.06,182.01,10.68217481]
[1747183636886,5.49299642,182.05,182.02,10.68217481]
[1747183637784,5.49299642,182.05,181.96,31.49569933]
[1747183637785,5.49299642,182.05,182.01,10.68217481]
[1747183638505,5.49299642,182.05,182.04,10.68217481]
[1747183638894,5.49299642,182.05,182.03,10.68217481]
[1747183639684,5.49239303,182.07,182.03,10.68217481]
[1747183640015,5.49239303,182.07,182.04,10.68217481]
[1747183640479,5.49239303,182.07,182.06,10.68217481]
[1747183640927,6.79195791,182.09,182.06,10.68217481]
[1747183641088,6.79195791,182.09,182.01,20.1]
[1747183641089,6.79195791,182.09,182.08,10.68217481]
[1747183641579,1.3,182.09,182.08,10.68217481]
[1747183641792,6.79033115,182.14,182.08,10.68217481]
[1747183642092,6.78991357,182.16,182.13,10.68217481]
[1747183642289,1.3,182.16,182.14,10.68217481]
[1747183642501,6.78979383,182.16,182.15,10.68217481]
[1747183642707,1.3,182.16,182.15,10.68217481]
[1747183643004,21.46,182.22,182.15,10.68217481]
[1747183643310,21.46,182.22,182.11,26.0]
[1747183643311,1.3,182.21,182.11,26.0]
[1747183643604,6.78817298,182.21,182.2,10.68217481]
[1747183643809,5.48817298,182.21,182.2,10.68217481]
[1747183643996,5.48696844,182.25,182.16,16.1717933]
[1747183644195,5.48696844,182.25,182.21,10.68217481]
[1747183644397,10.68217481,182.24,182.19,10.68217481]
[1747183644781,19.20438956,182.25,182.2,10.68217481]
[1747183644979,10.68217481,182.24,182.15,20.1]
[1747183645199,10.68217481,182.24,182.19,10.68217481]
[1747183646012,5.48757065,182.23,182.19,10.68217481]
[1747183646590,19.20649728,182.23,182.19,10.68217481]
[1747183647220,5.48757065,182.23,182.2,10.68217481]
[1747183647512,5.48757065,182.23,182.22,10.68217481]
[1747183647828,5.48726953,182.24,182.22,10.68217481]
[1747183648609,5.48726953,182.24,182.23,10.68217481]
[1747183648912,5.48726953,182.24,182.16,10.68217481]
[1747183649117,6.78726953,182.24,182.22,10.68217481]
[1747183649619,6.78726953,182.24,182.21,10.68217481]
[1747183649910,20.50544336,182.24,182.15,20.1]
[1747183650107,1.3,182.23,182.19,10.68217481]
[1747183650414,1.3,182.23,182.2,10.68217481]
[1747183651900,5.4878718,182.22,182.2,10.68217481]
[1747183652411,5.4878718,182.22,182.19,10.68217481]
[1747183652616,5.4878718,182.22,182.15,20.1]
[1747183652617,10.68217481,182.2,182.15,30.78217481]
[1747183652825,10.68217481,182.18,182.13,10.68217481]
[1747183653121,10.68217481,182.18,182.1,20.0]
[1747183653122,1.3,182.19,182.17,10.68217481]
[1747183653295,1.3,182.21,182.18,10.68217481]
[1747183653494,11.98217481,182.21,182.16,10.68217481]
[1747183654013,5.4884742,182.2,182.16,10.68217481]
[1747183654221,19.20965971,182.2,182.16,10.68217481]
[1747183655515,19.20965971,182.2,182.17,10.68217481]
[1747183657137,10.68217481,182.18,182.1,20.0]
[1747183657295,10.68217481,182.17,182.12,10.68217481]
[1747183658295,11.98217481,182.19,182.14,10.68217481]
[1747183658498,1.3,182.18,182.13,10.68217481]
[1747183658698,11.98217481,182.18,182.13,10.68217481]
[1747183659326,5.48937805,182.17,182.13,10.68217481]
[1747183660314,1.3,182.16,182.12,10.68217481]
[1747183661020,1.3,182.15,182.12,10.68217481]
[1747183661224,10.68217481,182.13,182.05,20.0]
[1747183661537,5.49118664,182.11,182.09,10.68217481]
[1747183663007,5.49118664,182.11,182.1,10.68217481]
[1747183664443,5.49118664,182.11,182.08,10.68217481]
[1747183664803,5.49118664,182.11,182.09,10.68217481]
[1747183666020,5.49118664,182.11,182.1,10.68217481]
[1747183666539,8.26975437,182.11,182.1,10.68217481]
[1747183668633,1.3,182.12,182.1,10.68217481]
[1747183668811,1.3,182.12,182.07,16.17434812]
[1747183668812,1.3,182.12,182.11,10.68217481]
[1747183669014,6.79088513,182.12,182.1,10.68217481]
[1747183670515,6.79088513,182.12,182.05,46.0]
[1747183670732,6.79088513,182.12,182.1,10.68217481]
[1747183670908,6.79088513,182.12,182.05,46.0]
[1747183671113,6.79088513,182.12,182.1,10.68217481]
[1747183671326,6.79088513,182.12,182.05,46.0]
[1747183671327,1.3,182.12,182.11,10.68217481]
[1747183671609,6.79088513,182.12,182.1,10.68217481]
[1747183671812,6.79088513,182.12,182.08,10.68217481]
[1747183672012,6.79088513,182.12,182.09,10.68217481]
[1747183672803,20.51809795,182.12,182.09,10.68217481]
[1747183676541,10.68217481,182.1,182.05,30.68217481]
[1747183676915,1.3,182.11,182.06,10.68217481]
[1747183677335,1.3,182.11,182.06,6.68875744]
[1747183678343,5.49148819,182.1,182.06,6.68875744]
[1747183678644,6.79125157,182.11,182.09,6.68875744]
[1747183679731,6.79125157,182.11,182.05,25.49284465]
[1747183679732,5.4902822,182.14,182.1,6.68875744]
[1747183680046,5.4902822,182.14,182.12,6.68875744]
[1747183680836,5.4902822,182.14,182.11,6.68875744]
[1747183681726,5.4902822,182.14,182.12,6.68875744]
[1747183682456,5.4902822,182.14,182.06,26.0]
[1747183682621,6.68875744,182.12,182.07,6.68875744]
[1747183682821,6.68875744,182.12,182.06,6.68875744]
[1747183683834,6.68875744,182.12,182.07,6.68875744]
[1747183684250,6.68875744,182.12,182.06,6.68875744]
[1747183684948,5.49118664,182.11,182.06,6.68875744]
[1747183685324,5.49118664,182.11,182.06,10.70208278]
[1747183685844,16.19326942,182.11,182.05,30.70208278]
[1747183686533,29.92123603,182.11,182.05,30.70208278]
[1747183686860,19.2212642,182.09,182.05,20.0]
[1747183687039,10.70208278,182.08,182.02,10.70208278]
[1747183687549,5.49178977,182.09,182.05,10.70208278]
[1747183687743,5.49178977,182.09,182.07,10.70208278]
[1747183689241,5.49178977,182.09,182.02,5.49361777]
[1747183689553,5.49178977,182.09,182.07,10.70208278]
[1747183690132,5.49178977,182.09,182.06,10.70208278]
[1747183690429,5.49178977,182.09,182.05,10.70208278]
[1747183692460,29.92334698,182.09,182.03,10.70208278]
[1747183692659,1.3,182.08,182.04,10.70208278]
[1747183693028,1.3,182.08,182.05,10.70208278]
[1747183693223,1.3,182.08,182.06,10.70208278]
[1747183693437,1.3,182.08,182.07,10.70208278]
[1747183693642,1.3,182.08,182.02,25.15385107]
[1747183693876,10.70208278,182.06,182.02,19.66]
[1747183694257,5.49299642,182.05,182.02,19.66]
[1747183694450,16.1950792,182.05,182.02,19.66]
[1747183694769,10.70208278,182.03,181.97,19.66]
[1747183694937,10.70208278,182.0,181.95,10.70208278]
[1747183695132,10.70208278,182.0,181.92,39.62027454]
[1747183695133,6.0368,182.0,181.92,14.46357513]
[1747183695350,46.94216157,181.99,181.92,8.48100751]
[1747183695534,46.94216157,181.99,181.92,19.18309029]
[1747183695535,10.70208278,181.97,181.92,19.18309029]
[1747183695750,1.3,181.99,181.95,10.70208278]
[1747183696343,5.49510935,181.98,181.95,10.70208278]
[1747183696559,5.49510935,181.98,181.96,10.70208278]
[1747183696750,6.79486916,181.99,181.96,10.70208278]
[1747183696954,6.79486916,181.99,181.97,10.70208278]
[1747183697146,6.79486916,181.99,181.96,10.70208278]
[1747183697959,6.79486916,181.99,181.95,10.70208278]
[1747183698539,31.23397045,181.99,181.91,19.66]
[1747183698745,10.70208278,181.97,181.92,10.70208278]
[1747183699175,12.00208278,181.96,181.91,10.70208278]
[1747183699392,10.70208278,181.95,181.9,10.70208278]
[1747183699581,12.00208278,181.96,181.91,10.70208278]
[1747183699782,12.00208278,181.96,181.9,10.70208278]
[1747183700068,12.00208278,181.96,181.87,8.95286386]
[1747183700242,12.00208278,181.96,181.9,10.70208278]
[1747183700446,5.49631746,181.94,181.9,10.70208278]
[1747183700747,10.70208278,181.91,181.87,8.95286386]
[1747183701155,10.70208278,181.89,181.87,8.95286386]
[1747183701677,10.70208278,181.88,181.87,8.95286386]
[1747183702257,10.98640592,181.88,181.87,8.95286386]
[1747183702558,16.62669812,181.88,181.87,8.95286386]
[1747183702764,16.62669812,181.88,181.76,8.48100751]
[1747183702765,5.49813063,181.88,181.81,10.70208278]
[1747183702964,10.70208278,181.87,181.82,10.70208278]
[1747183703165,10.70208278,181.86,181.81,10.70208278]
[1747183703882,16.20106481,181.86,181.81,10.70208278]
[1747183704252,5.49898203,181.86,181.78,10.70208278]
[1747183704565,5.4984544,181.87,181.83,10.70208278]
[1747183706157,5.49692172,181.92,181.86,10.70208278]
[1747183706362,5.49692172,181.92,181.91,10.70208278]
[1747183706559,5.49692172,181.92,181.9,10.70208278]
[1747183707388,5.49661957,181.93,181.9,10.70208278]
[1747183707557,5.49661957,181.93,181.89,10.70208278]
[1747183708360,5.49661957,181.93,181.91,10.70208278]
[1747183709088,5.49661957,181.93,181.86,19.68]
[1747183709260,2.71523147,181.94,181.91,10.70208278]
[1747183709462,1.3,181.93,181.91,10.70208278]
[1747183709674,1.3,181.93,181.86,19.68]
[1747183710100,1.3,181.93,181.89,10.70208278]
[1747183710686,12.00208278,181.93,181.86,19.68]
[1747183710995,10.70208278,181.92,181.87,10.70208278]
[1747183711170,10.70208278,181.91,181.8,10.70208278]
[1747183711360,5.49782835,181.89,181.86,10.70208278]
[1747183712486,5.49782835,181.89,181.87,10.70208278]
[1747183712695,5.49782835,181.89,181.88,10.70208278]
[1747183712883,5.49782835,181.89,181.87,10.70208278]
[1747183713611,5.49782835,181.89,181.88,10.70208278]
[1747183713770,1.3,181.9,181.88,10.70208278]
[1747183713967,1.3,181.9,181.89,10.70208278]
[1747183714478,6.79752611,181.9,181.89,10.70208278]
[1747183714669,5.49752611,181.9,181.89,10.70208278]
[1747183715261,5.49692172,181.92,181.89,10.70208278]
[1747183715477,5.49692172,181.92,181.91,10.70208278]
[1747183715983,5.49692172,181.92,181.84,26.0]
[1747183715984,5.49692172,181.92,181.9,10.70208278]
[1747183716189,29.9413088,181.92,181.81,19.82216157]
[1747183716377,1.3,181.91,181.87,10.70208278]
[1747183716682,5.49752611,181.9,181.87,10.70208278]
[1747183717063,5.49752611,181.9,181.81,19.82216157]
[1747183717264,5.49752611,181.9,181.87,10.70208278]
[1747183717461,5.49752611,181.9,181.88,10.70208278]
[1747183717990,6.79726524,181.91,181.89,10.70208278]
[1747183718186,6.79726524,181.91,181.9,10.70208278]
[1747183722196,8.254638,181.93,181.9,10.70208278]
[1747183722391,8.254638,181.93,181.92,10.70208278]
[1747183724605,8.254638,181.93,181.9,10.70208278]
[1747183725296,8.254638,181.93,181.89,10.70208278]
[1747183725600,5.49541133,181.97,181.92,10.70208278]
[1747183725806,1.3,181.96,181.93,10.70208278]
[1747183725978,1.3,181.96,181.91,10.70208278]
[1747183726181,12.00208278,181.96,181.91,10.70208278]
[1747183726502,1.3,181.96,181.95,10.70208278]
[1747183726701,6.79571334,181.96,181.95,10.70208278]
[1747183726999,1.3,181.96,181.95,10.70208278]
[1747183729000,1.3,182.01,181.95,10.70208278]
[1747183729208,5.49420361,182.01,181.95,10.70208278]
[1747183729509,5.49420361,182.01,181.99,10.70208278]
[1747183730004,5.49420361,182.01,182.0,10.70208278]
[1747183730781,5.49420361,182.01,181.99,10.70208278]
[1747183732407,5.49420361,182.01,182.0,10.70208278]
[1747183732591,6.79398028,182.02,182.0,10.70208278]
[1747183732788,5.49398028,182.02,182.01,10.70208278]
[1747183733498,1.3,182.1,182.01,10.70208278]
[1747183733697,6.79148819,182.1,182.09,10.70208278]
[1747183734091,5.49058364,182.13,182.09,10.70208278]
[1747183734293,5.49058364,182.13,182.1,10.70208278]
[1747183735085,5.49058364,182.13,182.11,10.70208278]
[1747183735313,5.49058364,182.13,182.12,10.70208278]
[1747183735912,5.49058364,182.13,182.07,10.70208278]
[1747183736219,5.49058364,182.13,182.12,10.70208278]
[1747183736403,5.49058364,182.13,182.11,10.70208278]
[1747183736723,5.49058364,182.13,182.07,10.70208278]
[1747183736919,5.49058364,182.13,182.12,10.70208278]
[1747183737615,5.49058364,182.13,182.11,10.70208278]
[1747183737818,5.49058364,182.13,182.03,0.14216157]
[1747183737997,5.49058364,182.13,182.09,10.70208278]
[1747183738524,5.49058364,182.13,182.11,10.70208278]
[1747183740315,5.49058364,182.13,182.12,10.70208278]
[1747183740703,5.49058364,182.13,182.07,10.70208278]
[1747183740704,5.49058364,182.13,182.11,10.70208278]
[1747183742207,10.70208278,182.12,182.02,8.2103]
[1747183742417,12.00208278,182.11,182.06,10.70208278]
[1747183742620,1.3,182.11,182.07,10.70208278]
[1747183742817,1.3,182.11,182.08,10.70208278]
[1747183743141,1.3,182.11,182.1,10.70208278]
[1747183743311,5.49058364,182.13,182.1,10.70208278]
[1747183743512,5.49058364,182.13,182.12,10.70208278]
[1747183743915,5.49058364,182.13,182.07,10.70208278]
[1747183744110,2.75162019,182.14,182.12,10.70208278]
[1747183744415,5.49031924,182.14,182.13,10.70208278]
[1747183744633,1.3,182.15,182.13,10.70208278]
[1747183744805,1.3,182.15,182.14,10.70208278]
[1747183745001,5.48968707,182.16,182.14,10.70208278]
[1747183745199,1.3,182.19,182.15,10.70208278]
[1747183745436,1.3,182.21,182.12,6.3149]
[1747183745616,6.78817298,182.21,182.2,10.70208278]
[1747183746227,5.48817298,182.21,182.2,10.70208278]
[1747183746410,5.48788011,182.22,182.2,10.70208278]
[1747183746736,5.48788011,182.22,182.21,10.70208278]
[1747183747124,5.48767952,182.23,182.21,10.70208278]
[1747183747335,1.3,182.24,182.22,10.70208278]
[1747183747513,5.48636637,182.27,182.23,10.70208278]
[1747183747909,5.48606539,182.28,182.26,10.70208278]
[1747183748219,5.48606539,182.28,182.27,10.70208278]
[1747183748807,5.48606539,182.28,182.26,10.70208278]
[1747183749013,5.48606539,182.28,182.27,10.70208278]
[1747183750035,19.19826615,182.31,182.27,10.70208278]
[1747183750231,19.19826615,182.31,182.28,10.70208278]
[1747183751637,10.70208278,182.29,182.24,19.54]
[1747183751933,5.48666739,182.26,182.22,10.70208278]
[1747183752150,5.48666739,182.26,182.23,10.70208278]
[1747183752643,5.48666739,182.26,182.24,10.70208278]
[1747183752848,5.48606539,182.28,182.25,10.70208278]
[1747183753138,16.43324048,182.31,182.27,10.70208278]
[1747183753139,5.48546352,182.3,182.27,10.70208278]
[1747183753334,5.48546352,182.3,182.22,26.14216157]
[1747183753631,5.48546352,182.3,182.28,10.70208278]
[1747183753833,5.48546352,182.3,182.29,10.70208278]
[1747183754410,13.7087435,182.37,182.29,10.70208278]
[1747183754624,13.7087435,182.37,182.26,25.9388]
[1747183754625,5.48365869,182.36,182.34,10.70208278]
[1747183755348,5.48365869,182.36,182.33,10.70208278]
[1747183755640,10.70208278,182.34,182.26,25.9388]
[1747183756037,5.48456096,182.33,182.29,10.70208278]
[1747183756738,5.48456096,182.33,182.3,10.70208278]
[1747183757109,5.48456096,182.33,182.29,10.70208278]
[1747183757416,10.70208278,182.3,182.19,19.52]
[1747183757612,10.70208278,182.26,182.21,10.70208278]